fUSD/lending_fUSD_20260409
["ID","MTS","AMOUNT","RATE_DAILY","PERIOD"]
[420125054,1775699442600,-551.0,0.0001545,2]
[420125055,1775699442610,-578.36645902,0.0001549,2]
[420125056,1775699442621,-1109.18154591,0.00015497,5]
[420125057,1775699442631,-500.0,0.00015497,2]
[420125058,1775699442641,-500.0,0.00015497,2]
[420125059,1775699442651,-500.0,0.00015497,2]
[420125060,1775699442660,-500.0,0.00015497,2]
[420125061,1775699442670,-500.0,0.00015497,2]
[420125062,1775699442680,-500.0,0.00015497,2]
[420125063,1775699442689,-617.94,0.00015497,2]
[420125064,1775699442700,-617.94,0.00015497,2]
[420125065,1775699442709,-500.0,0.00015497,2]
[420125066,1775699442718,-500.0,0.00015497,2]
[420125067,1775699442728,-500.0,0.00015497,2]
[420125068,1775699442739,-500.0,0.00015497,2]
[420125069,1775699442750,-500.0,0.00015497,2]
[420125070,1775699442760,-440.20475175,0.00015497,2]
[420125071,1775699442771,-500.0,0.00015497,2]
[420125072,1775699442781,-500.0,0.00015497,2]
[420125073,1775699442791,-500.0,0.00015497,2]
[420125074,1775699442801,-500.0,0.00015497,2]
[420125075,1775699442810,-521.25,0.00015497,2]
[420125076,1775699442820,-521.25,0.00015497,2]
[420125077,1775699442830,-500.0,0.00015497,2]
[420125078,1775699442840,-500.0,0.00015497,2]
[420125079,1775699442850,-8600.0,0.000155,5]
[420125080,1775699442860,-185.18721773,0.00015503,2]
[420125081,1775699442870,-986.05,0.00015534,2]
[420125082,1775699442880,-200.0,0.00015536,2]
[420125083,1775699442890,-1235.18214925,0.00015536,2]
[420125084,1775699442900,-771.01748645,0.00015536,2]
[420125085,1775699442909,-181.08010149,0.00015536,2]
[420125086,1775699442919,-155.0,0.00015579,3]
[420125087,1775699442929,-551.0,0.00015596,2]
[420125088,1775699442939,-1700.0,0.000156,5]
[420125089,1775699442949,-1253.2842,0.00015607,2]
[420125090,1775699442959,-5000.0,0.0001561,2]
[420125091,1775699442968,-680.0,0.00015616,2]
[420125092,1775699442979,-551.0,0.00015657,2]
[420125093,1775699442989,-500.0,0.0001567,2]
[420125094,1775699442999,-500.0,0.0001567,2]
[420125095,1775699443010,-1000.0,0.0001567,2]
[420125096,1775699443020,-500.0,0.0001567,2]
[420125097,1775699443031,-1000.0,0.0001567,2]
[420125098,1775699443041,-500.0,0.0001567,2]
[420125099,1775699443051,-1000.0,0.0001567,2]
[420125100,1775699443062,-500.0,0.0001567,2]
[420125101,1775699443073,-500.0,0.0001567,2]
[420125102,1775699443083,-666.54570841,0.0001567,2]
[420125103,1775699443094,-1000.0,0.0001567,2]
[420125104,1775699443105,-1000.0,0.0001567,2]
[420125105,1775699443115,-1000.0,0.0001567,2]
[420125106,1775699443125,-1651.24188523,0.0001567,2]
[420125107,1775699443135,-241.46461457,0.00015679,2]
[420125108,1775699443145,-500.0,0.00015679,2]
[420125109,1775699443155,-500.0,0.00015679,2]
[420125110,1775699443165,-500.0,0.00015679,2]
[420125111,1775699443175,-500.0,0.00015679,2]
[420125112,1775699443186,-500.0,0.00015679,2]
[420125113,1775699443196,-521.25,0.00015679,2]
[420125114,1775699443207,-163.0,0.0001568,2]
[420125115,1775699443217,-882.9793498,0.0001568,2]
[420125116,1775699443227,-1000.0,0.00015694,2]
[420125117,1775699443237,-1000.0,0.00015694,2]
[420125118,1775699443249,-1000.0,0.00015694,2]
[420125119,1775699443259,-1000.0,0.00015694,2]
[420125120,1775699443269,-1000.0,0.00015694,2]
[420125121,1775699443280,-1000.0,0.00015694,2]
[420125122,1775699443289,-1000.0,0.00015694,2]
[420125123,1775699443300,-1000.0,0.00015694,2]
[420125124,1775699443310,-1000.0,0.00015694,2]
[420125125,1775699443320,-1000.0,0.00015694,2]
[420125126,1775699443330,-1000.0,0.00015694,2]
[420125127,1775699443339,-398.985,0.00015694,2]
[420125128,1775699443350,-1700.0,0.000157,5]
[420125129,1775699443360,-1308.0,0.00015707,5]
[420125130,1775699443371,-152.16340629,0.00015707,2]
[420125131,1775699443380,-248.89895405,0.00015708,2]
[420125132,1775699443392,-617.94,0.00015708,2]
[420125133,1775699443401,-500.0,0.00015709,2]
[420125134,1775699443411,-500.0,0.00015709,2]
[420125135,1775699443422,-500.0,0.00015709,2]
[420125136,1775699443432,-500.0,0.00015709,2]
[420125137,1775699443442,-500.0,0.00015709,2]
[420125138,1775699443452,-500.0,0.00015709,2]
[420125139,1775699443462,-500.0,0.00015709,2]
[420125140,1775699443472,-500.0,0.00015709,2]
[420125141,1775699443482,-500.0,0.00015709,2]
[420125142,1775699443494,-500.0,0.00015709,2]
[420125143,1775699443508,-617.94,0.00015709,2]
[420125144,1775699443519,-617.94,0.00015709,2]
[420125145,1775699443530,-617.94,0.00015709,2]
[420125146,1775699443541,-617.94,0.00015709,2]
[420125147,1775699443551,-500.0,0.00015709,2]
[420125148,1775699443561,-500.0,0.00015709,2]
[420125149,1775699443572,-500.0,0.00015709,2]
[420125150,1775699443582,-500.0,0.00015709,2]
[420125151,1775699443593,-356.85678818,0.00015709,2]
[420125152,1775699443603,-500.0,0.00015709,2]
[420125153,1775699443613,-500.0,0.00015709,2]
[420125154,1775699443624,-500.0,0.00015709,2]
[420125155,1775699443635,-509.63961516,0.00015709,2]
[420125156,1775699443645,-500.0,0.00015709,2]
[420125157,1775699443655,-500.0,0.00015709,2]
[420125158,1775699443667,-500.0,0.00015709,2]
[420125159,1775699443677,-500.0,0.00015709,2]
[420125160,1775699443688,-500.0,0.00015709,2]
[420125161,1775699443698,-500.0,0.00015709,2]
[420125162,1775699443708,-500.0,0.00015709,2]
[420125163,1775699443718,-500.0,0.00015709,2]
[420125164,1775699443728,-500.0,0.00015709,2]
[420125165,1775699443738,-500.0,0.00015709,2]
[420125166,1775699443750,-500.0,0.00015709,2]
[420125167,1775699443760,-521.25,0.00015709,2]
[420125168,1775699443770,-521.25,0.00015709,2]
[420125169,1775699443780,-521.25,0.00015709,2]
[420125170,1775699443790,-521.25,0.00015709,2]
[420125171,1775699443801,-521.25,0.00015709,2]
[420125172,1775699443810,-500.0,0.00015709,2]
[420125173,1775699443820,-500.0,0.00015709,2]
[420125174,1775699443830,-500.0,0.00015709,2]
[420125175,1775699443841,-500.0,0.00015709,2]
[420125176,1775699443852,-500.0,0.00015709,2]
[420125177,1775699443863,-200.0,0.00015709,5]
[420125178,1775699443873,-200.0,0.00015709,5]
[420125179,1775699443883,-200.0,0.00015709,5]
[420125180,1775699443893,-200.0,0.00015709,5]
[420125181,1775699443903,-200.0,0.00015709,5]
[420125182,1775699443914,-200.0,0.00015709,5]
[420125183,1775699443924,-200.0,0.00015709,5]
[420125184,1775699443934,-200.0,0.00015709,5]
[420125185,1775699443944,-200.0,0.00015709,5]
[420125186,1775699443954,-200.0,0.00015709,5]
[420125187,1775699443964,-200.0,0.00015709,5]
[420125188,1775699443975,-200.0,0.00015709,5]
[420125189,1775699444307,-200.0,0.00015709,5]
[420125190,1775699444317,-200.0,0.00015709,5]
[420125191,1775699444327,-200.0,0.00015709,5]
[420125192,1775699444336,-200.0,0.00015709,5]
[420125193,1775699444346,-200.0,0.00015709,5]
[420125194,1775699444355,-200.0,0.00015709,5]
[420125195,1775699444365,-200.0,0.00015709,5]
[420125196,1775699444374,-200.0,0.00015709,5]
[420125197,1775699444383,-200.0,0.00015709,5]
[420125198,1775699444393,-200.0,0.00015709,5]
[420125199,1775699444402,-200.0,0.00015709,5]
[420125200,1775699444412,-200.0,0.00015709,5]
[420125201,1775699444422,-200.0,0.00015709,5]
[420125202,1775699444431,-200.0,0.00015709,5]
[420125203,1775699444441,-200.0,0.00015709,5]
[420125204,1775699444450,-200.0,0.00015709,5]
[420125205,1775699444460,-200.0,0.00015709,5]
[420125206,1775699444469,-200.0,0.00015709,5]
[420125207,1775699444480,-200.0,0.00015709,5]
[420125208,1775699444489,-200.0,0.00015709,5]
[420125209,1775699444500,-200.0,0.00015709,5]
[420125210,1775699444510,-200.0,0.00015709,5]
[420125211,1775699444520,-200.0,0.00015709,5]
[420125212,1775699444529,-200.0,0.00015709,5]
[420125213,1775699444539,-200.0,0.00015709,5]
[420125214,1775699444548,-200.0,0.00015709,5]
[420125215,1775699444558,-200.0,0.00015709,5]
[420125216,1775699444567,-200.0,0.00015709,5]
[420125217,1775699444577,-200.0,0.00015709,5]
[420125218,1775699444586,-200.0,0.00015709,5]
[420125219,1775699444596,-200.0,0.00015709,5]
[420125220,1775699444606,-200.0,0.00015709,5]
[420125221,1775699444616,-200.0,0.00015709,5]
[420125222,1775699444626,-200.0,0.00015709,5]
[420125223,1775699444636,-200.0,0.00015709,5]
[420125224,1775699444646,-281.386917,0.00015709,5]
[420125225,1775699444656,-500.0,0.00015709,2]
[420125226,1775699444666,-150.0,0.0001571,2]
[420125227,1775699444675,-11360.12250303,0.0001571,2]
[420125228,1775699444685,-150.0,0.0001571,2]
[420125229,1775699444696,-66761.35057025,0.0001571,2]
[420125230,1775699444705,-150.0,0.0001571,2]
[420125231,1775699444716,-7917.07402094,0.0001571,2]
[420125232,1775699444726,-153.69,0.00015717,2]
[420125233,1775699444736,-398.85121101,0.00015719,2]
[420125234,1775699444746,-500.0,0.00015728,2]
[420125235,1775699444759,-200.0,0.00015728,2]
[420125236,1775699444770,-1629.0,0.0001573,5]
[420125237,1775699444779,-150.0,0.00015731,2]
[420125238,1775699444789,-1000.0,0.00015731,2]
[420125239,1775699444798,-1000.0,0.00015731,2]
[420125240,1775699444808,-1000.0,0.00015731,2]
[420125241,1775699444818,-1000.0,0.00015731,2]
[420125242,1775699444828,-266.452,0.00015731,2]
[420125243,1775699444838,-1000.0,0.00015734,2]
[420125244,1775699444847,-1000.0,0.00015734,2]
[420125245,1775699444857,-992.0775647,0.00015734,2]
[420125246,1775699444867,-222.38,0.00015736,2]
[420125247,1775699444876,-150.0,0.00015744,2]
[420125248,1775699444886,-725.03,0.00015753,2]
[420125249,1775699444896,-171.12,0.0001576,2]
[420125250,1775699444905,-3574.41646936,0.00015763,2]
[420125251,1775699444915,-992.0775647,0.00015769,2]
[420125252,1775699444926,-150.0,0.00015781,2]
[420125253,1775699444935,-424.9,0.0001579,2]
[420125254,1775699444945,-3574.41646936,0.0001579,2]
[420125255,1775699444955,-680.0,0.00015795,2]
[420125256,1775699444964,-1791.79,0.000158,2]
[420125257,1775699444974,-542.91850225,0.000158,2]
[420125258,1775699444983,-612.0,0.000158,2]
[420125259,1775699444992,-1000.0,0.000158,2]
[420125260,1775699445004,-627.0,0.000158,2]
[420125261,1775699445014,-1700.0,0.000158,5]
[420125262,1775699445023,-2000.0,0.000158,2]
[420125263,1775699445033,-152.0,0.00015807,2]
[420125264,1775699445043,-156.73369052,0.00015807,2]
[420125265,1775699445053,-680.0,0.00015808,2]
[420125266,1775699445063,-150.0,0.00015808,2]
[420125267,1775699445073,-986.05,0.00015808,2]
[420125268,1775699445083,-680.0,0.00015812,2]
[420125269,1775699445092,-1000.0,0.00015814,2]
[420125270,1775699445102,-150.0,0.00015817,2]
[420125271,1775699445111,-3574.41646936,0.00015818,2]
[420125272,1775699445121,-150.0,0.00015825,2]
[420125273,1775699445131,-300.0,0.00015828,2]
[420125274,1775699445141,-150.0,0.00015829,2]
[420125275,1775699445151,-1000.0,0.00015829,2]
[420125276,1775699445161,-150.0,0.0001583,2]
[420125277,1775699445171,-1000.0,0.00015834,2]
[420125278,1775699445180,-33956.0,0.00015836,2]
[420125279,1775699445190,-1402.79484,0.0001584,2]
[420125280,1775699445199,-1402.79485,0.0001584,2]
[420125281,1775699445210,-994.01934182,0.00015842,2]
[420125282,1775699445220,-3574.41646936,0.00015845,2]
[420125283,1775699445230,-1000.0,0.00015847,2]
[420125284,1775699445240,-1000.0,0.00015848,2]
[420125285,1775699445252,-202.48280308,0.00015849,2]
[420125286,1775699445261,-542.91850223,0.0001585,2]
[420125287,1775699445271,-1402.79485,0.0001585,2]
[420125288,1775699445280,-1000.0,0.00015851,2]
[420125289,1775699445290,-1000.0,0.00015853,2]
[420125290,1775699445299,-150.0,0.00015854,2]
[420125291,1775699445308,-1000.0,0.00015861,2]
[420125292,1775699445317,-25921.8066949,0.00015863,2]
[420125293,1775699445327,-60769.2219618,0.00015863,2]
[420125294,1775699445337,-81170.5285174,0.00015863,2]
[420125295,1775699445346,-109097.3095979,0.00015863,2]
[420125296,1775699445356,-120746.6111836,0.00015863,2]
[420125297,1775699445365,-29669.1351212,0.00015863,2]
[420125298,1775699445375,-2248.447841,0.00015863,2]
[420125299,1775699445384,-3574.41646936,0.00015873,2]
[420125300,1775699445394,-2968.0,0.00015873,2]
[420125301,1775699445403,-174.7822,0.0001588,2]
[420125302,1775699445414,-1000.0,0.00015887,2]
[420125303,1775699445424,-374.04158275,0.00015889,2]
[420125304,1775699445434,-150.0,0.0001589,2]
[420125305,1775699445444,-500.0,0.0001589,2]
[420125306,1775699445454,-500.0,0.0001589,2]
[420125307,1775699445464,-500.0,0.0001589,2]
[420125308,1775699445474,-500.0,0.0001589,2]
[420125309,1775699445484,-500.0,0.0001589,2]
[420125310,1775699445494,-500.0,0.0001589,2]
[420125311,1775699445504,-500.0,0.0001589,2]
[420125312,1775699445513,-500.0,0.0001589,2]
[420125313,1775699445522,-500.0,0.0001589,2]
[420125315,1775699445533,-500.0,0.0001589,2]
[420125317,1775699445542,-500.0,0.0001589,2]
[420125319,1775699445552,-2968.0,0.0001589,2]
[420125321,1775699445562,-1002.25267506,0.00015892,2]
[420125322,1775699445570,-2500.0,0.00015892,2]
[420125323,1775699445580,-617.94,0.00015899,2]
[420125324,1775699445590,-405.95,0.00015899,2]
[420125325,1775699445600,-2111.67672434,0.000159,2]
[420125326,1775699445609,-256.20053588,0.000159,3]
[420125327,1775699445619,-2000.0,0.000159,2]
[420125328,1775699445628,-542.91850223,0.000159,2]
[420125329,1775699445637,-399.55516431,0.000159,2]
[420125330,1775699445647,-399.55516431,0.000159,2]
[420125331,1775699445657,-399.55516431,0.000159,2]
[420125332,1775699445667,-399.55516431,0.000159,2]
[420125333,1775699445676,-399.55516431,0.000159,2]
[420125334,1775699445686,-399.55516431,0.000159,2]
[420125335,1775699445696,-399.55516431,0.000159,2]
[420125336,1775699445706,-399.55516431,0.000159,2]
[420125337,1775699445716,-1140.77609482,0.000159,2]
[420125338,1775699445726,-11254.92709804,0.000159,2]
[420125339,1775699445735,-3136.21036088,0.000159,2]
[420125340,1775699445744,-1700.0,0.000159,5]
[420125341,1775699445755,-3574.41646936,0.000159,2]
[420125342,1775699445764,-2000.0,0.000159,2]
[420125343,1775699445775,-1000.0,0.00015914,2]
[420125344,1775699445785,-151.55726367,0.00015915,2]
[420125345,1775699445795,-2498.0,0.00015917,3]
[420125346,1775699445805,-1000.0,0.00015919,2]
[420125347,1775699445815,-1000.0,0.00015922,2]
[420125348,1775699445825,-150.0,0.00015938,2]
[420125349,1775699445836,-250.0,0.00015945,2]
[420125350,1775699445846,-150.0,0.00015954,2]
[420125351,1775699445856,-150.0,0.00015956,2]
[420125352,1775699445866,-1000.0,0.00015957,2]
[420125353,1775699445876,-300.0,0.00015958,2]
[420125354,1775699445887,-1000.0,0.00015959,2]
[420125355,1775699445897,-5031.6692643,0.0001596,2]
[420125356,1775699445907,-500.0,0.0001597,2]
[420125357,1775699445917,-1000.0,0.0001597,2]
[420125358,1775699445927,-1000.0,0.0001597,2]
[420125359,1775699445937,-500.0,0.0001597,2]
[420125360,1775699445947,-500.0,0.0001597,2]
[420125361,1775699445957,-1000.0,0.0001597,2]
[420125362,1775699445967,-500.0,0.0001597,2]
[420125363,1775699445977,-1000.0,0.0001597,2]
[420125364,1775699445986,-1000.0,0.0001597,2]
[420125365,1775699445996,-500.0,0.0001597,2]
[420125366,1775699446008,-500.0,0.00015973,2]
[420125367,1775699446018,-446.0904938,0.00015973,2]
[420125368,1775699446031,-500.0,0.00015973,2]
[420125369,1775699446042,-500.0,0.00015973,2]
[420125370,1775699446052,-506.06590041,0.00015973,2]
[420125371,1775699446062,-500.0,0.00015973,2]
[420125372,1775699446071,-500.0,0.00015973,2]
[420125373,1775699446081,-500.0,0.00015973,2]
[420125374,1775699446091,-500.0,0.00015973,2]
[420125375,1775699446101,-500.0,0.00015973,2]
[420125376,1775699446111,-500.34563558,0.00015973,2]
[420125377,1775699446121,-500.0,0.00015973,2]
[420125378,1775699446131,-500.0,0.00015973,2]
[420125379,1775699446141,-500.0,0.00015973,2]
[420125380,1775699446150,-500.0,0.00015973,2]
[420125381,1775699446159,-500.0,0.00015973,2]
[420125382,1775699446170,-500.0,0.00015973,2]
[420125383,1775699446179,-500.0,0.00015973,2]
[420125384,1775699446189,-500.0,0.00015973,2]
[420125385,1775699446198,-166.61737268,0.00015973,2]
[420125386,1775699446207,-212.68744378,0.00015984,2]
[420125387,1775699446217,-150.0,0.00015986,2]
[420125388,1775699446226,-2968.0,0.00015987,2]
[420125389,1775699446236,-1066.3448323,0.0001599,2]
[420125390,1775699446246,-1066.3448323,0.0001599,2]
[420125391,1775699446256,-890.0,0.00015991,2]
[420125392,1775699446266,-827.0,0.00015991,2]
[420125393,1775699446276,-151.0,0.00015997,2]
[420125394,1775699446285,-151.0,0.00015997,2]
[420125395,1775699446295,-500.0,0.00015998,2]
[420125396,1775699446305,-500.0,0.00015998,2]
[420125397,1775699446315,-500.0,0.00015998,2]
[420125398,1775699446324,-500.0,0.00015998,2]
[420125399,1775699446332,-500.0,0.00015998,2]
[420125400,1775699446341,-521.25,0.00015998,2]
[420125401,1775699446348,-500.0,0.00015998,2]
[420125402,1775699446358,-666.0,0.00015999,2]
[420125403,1775699446368,-1099.20357934,0.00015999,5]
[420125404,1775699446378,-500.0,0.00015999,2]
[420125405,1775699446388,-500.0,0.00015999,2]
[420125406,1775699446398,-500.0,0.00015999,2]
[420125407,1775699446408,-500.0,0.00015999,2]
[420125408,1775699446418,-500.0,0.00015999,2]
[420125409,1775699446428,-500.0,0.00015999,2]
[420125410,1775699446438,-500.0,0.00015999,2]
[420125411,1775699446447,-390.902505,0.00015999,2]
[420125412,1775699446457,-191.48972955,0.00015999,2]
[420125413,1775699446467,-617.94,0.00015999,2]
[420125414,1775699446477,-617.94,0.00015999,2]
[420125415,1775699446487,-617.94,0.00015999,2]
[420125416,1775699446496,-617.94,0.00015999,2]
[420125417,1775699446507,-617.94,0.00015999,2]
[420125418,1775699446516,-617.94,0.00015999,2]
[420125419,1775699446526,-617.94,0.00015999,2]
[420125420,1775699446536,-617.94,0.00015999,2]
[420125421,1775699446545,-617.94,0.00015999,2]
[420125422,1775699446554,-617.94,0.00015999,2]
[420125423,1775699446564,-617.94,0.00015999,2]
[420125424,1775699446575,-617.94,0.00015999,2]
[420125425,1775699446584,-617.98014239,0.00015999,2]
[420125426,1775699446593,-500.0,0.00015999,2]
[420125427,1775699446601,-500.0,0.00015999,2]
[420125428,1775699446610,-500.0,0.00015999,2]
[420125429,1775699446620,-500.0,0.00015999,2]
[420125430,1775699446629,-602.90228471,0.00015999,2]
[420125431,1775699446639,-500.0,0.00015999,2]
[420125432,1775699446648,-500.0,0.00015999,2]
[420125433,1775699446657,-500.0,0.00015999,2]
[420125434,1775699446666,-500.0,0.00015999,2]
[420125435,1775699446676,-500.0,0.00015999,2]
[420125436,1775699446685,-500.0,0.00015999,2]
[420125437,1775699446694,-500.0,0.00015999,2]
[420125438,1775699446704,-500.0,0.00015999,2]
[420125439,1775699446714,-500.0,0.00015999,2]
[420125440,1775699446724,-500.0,0.00015999,2]
[420125441,1775699446733,-500.0,0.00015999,2]
[420125442,1775699446743,-500.0,0.00015999,2]
[420125443,1775699446753,-500.0,0.00015999,2]
[420125444,1775699446763,-500.0,0.00015999,2]
[420125445,1775699446773,-500.0,0.00015999,2]
[420125446,1775699446783,-500.0,0.00015999,2]
[420125447,1775699446793,-500.0,0.00015999,2]
[420125448,1775699446803,-500.0,0.00015999,2]
[420125449,1775699446812,-500.0,0.00015999,2]
[420125450,1775699446823,-537.73903853,0.00015999,2]
[420125451,1775699446833,-500.0,0.00015999,2]
[420125452,1775699446843,-500.0,0.00015999,2]
[420125453,1775699446853,-500.0,0.00015999,2]
[420125454,1775699446863,-500.0,0.00015999,2]
[420125455,1775699446873,-500.0,0.00015999,2]
[420125456,1775699446883,-500.0,0.00015999,2]
[420125457,1775699446893,-160.58205796,0.00015999,2]
[420125458,1775699446901,-521.25,0.00015999,2]
[420125459,1775699446910,-521.25,0.00015999,2]
[420125460,1775699446920,-521.25,0.00015999,2]
[420125461,1775699446929,-521.25,0.00015999,2]
[420125462,1775699446938,-521.25,0.00015999,2]
[420125463,1775699446947,-521.25,0.00015999,2]
[420125464,1775699446957,-521.25,0.00015999,2]
[420125465,1775699446966,-521.25,0.00015999,2]
[420125466,1775699446976,-521.25,0.00015999,2]
[420125467,1775699446986,-521.25,0.00015999,2]
[420125468,1775699446996,-521.25,0.00015999,2]
[420125469,1775699447007,-521.37974358,0.00015999,2]
[420125470,1775699447017,-500.0,0.00015999,2]
[420125471,1775699447027,-500.0,0.00015999,2]
[420125472,1775699447036,-500.0,0.00015999,2]
[420125473,1775699447046,-500.0,0.00015999,2]
[420125474,1775699447055,-500.0,0.00015999,2]
[420125475,1775699447065,-500.0,0.00015999,2]
[420125476,1775699447075,-500.0,0.00015999,2]
[420125477,1775699447084,-500.0,0.00015999,2]
[420125478,1775699447094,-500.0,0.00015999,2]
[420125479,1775699447104,-198.88590276,0.00015999,2]
[420125480,1775699447113,-1338.97051919,0.00016,2]
[420125481,1775699447122,-1492671.34513463,0.00016,2]
[420125482,1775699447257,-1009.550523,0.00015336,7]
[420125483,1775699447268,-198.70414321,0.000159,2]
[420125484,1775699447280,-380.30947352,0.000159,2]
[420125485,1775699447750,-211.0,0.00010386,2]
[420125486,1775699447759,-99.01561371,0.00012774,2]
[420125487,1775699447771,-769.32727411,0.00012774,2]
[420125488,1775699447781,-502.0,0.000131,2]
[420125489,1775699447790,-502.0,0.00014162,2]
[420125490,1775699447800,-2938.72513654,0.00014309,2]
[420125491,1775699447811,-9741.71044659,0.00014309,2]
[420125492,1775699447821,-160.0,0.00014688,2]
[420125493,1775699447830,-42.53308955,0.00014688,2]
[420125494,1775699447842,-330.27356345,0.00014688,2]
[420125495,1775699447852,-502.0,0.00015224,3]
[420125496,1775699447862,-3773.0,0.00015297,2]
[420125497,1775699447871,-200.0,0.000158,2]
[420125498,1775699447880,-547.83890497,0.000159,2]
[420125499,1775699447910,-1000.0,0.00015889,2]
[420125500,1775699447920,-57819.51681274,0.000159,2]
[420125501,1775699447929,-679315.3710133,0.00016,2]
[420125502,1775699447941,-5662.3550368,0.00016,2]
[420125503,1775699449823,-503.58987443,0.00011548,2]
[420125504,1775699449833,-296.41019254,0.00014688,2]
[420125513,1775699449982,-600.0,0.00010335,2]
[420125515,1775699449992,-868.34288782,0.00013399,2]
[420125517,1775699450003,-289.20311446,0.00014688,2]
[420125520,1775699450013,-7550.45919524,0.00015104,2]
[420125530,1775699450143,-290.0,0.00015104,2]
[420125535,1775699451223,-4839.97638789,0.00015104,2]
[420125536,1775699451233,-508.372709,0.00015422,2]
[420125537,1775699451243,-848.85024089,0.00015679,2]
[420125538,1775699451255,-210.90782972,0.00015679,2]
[420125539,1775699451265,-1109.5844149,0.00015679,2]
[420125540,1775699451275,-1001.77214875,0.00015679,2]
[420125541,1775699451285,-500.0,0.00015836,2]
[420125542,1775699451295,-10634.36567961,0.00016,2]
[420125543,1775699952560,-250.0,0.00010167,2]
[420125544,1775699952585,-150.0,0.000103,2]
[420125545,1775699952609,-200.0,0.0001033,2]
[420125546,1775699952633,-1156.41848616,0.0001033,2]
[420125547,1775699952656,-300.0,0.00010332,2]
[420125548,1775699952680,-1059.58151384,0.00010333,2]
[420125561,1775700632589,-150.0,0.0001,2]
[420125562,1775700632599,-150.0,0.0001,2]
[420125563,1775700632608,-288.98798831,0.0001,2]
[420125564,1775700632618,-894.51919608,0.0001,2]
[420125565,1775700632628,-777.63844115,0.0001,2]
[420125566,1775700632637,-5146.06409443,0.0001,2]
[420125567,1775700632647,-300.0,0.00010231,2]
[420125568,1775700632656,-1200.0,0.00010231,2]
[420125569,1775700632666,-300.0,0.00010231,2]
[420125570,1775700632675,-192.60112765,0.00010232,2]
[420125571,1775700632733,-271.90586894,0.00010232,2]
[420125572,1775700632744,-530.93601236,0.00010232,2]
[420125573,1775700632756,-42555.81719105,0.00010232,2]
[420125574,1775700632766,-500.0,0.00010233,2]
[420125575,1775700632775,-4945.1511,0.00010236,2]
[420125576,1775700632785,-125996.7047,0.00010236,2]
[420125577,1775700632793,-150.0,0.000103,2]
[420125578,1775700632803,-2848.0,0.000103,3]
[420125579,1775700632812,-1518.21,0.00010301,2]
[420125580,1775700632822,-150.0,0.00010327,2]
[420125581,1775700632831,-500.0,0.00010328,2]
[420125582,1775700632841,-200.0,0.0001033,2]
[420125583,1775700632850,-300.82431127,0.0001033,2]
[420125584,1775700632862,-855.59417489,0.0001033,2]
[420125585,1775700632871,-500.0,0.00010333,2]
[420125586,1775700632882,-500.0,0.00010333,2]
[420125587,1775700632891,-59.81482163,0.00010333,2]
[420125588,1775700632904,-419.57894031,0.00010333,2]
[420125589,1775700632913,-276.51597152,0.00010338,2]
[420125642,1775700639087,-723.48402848,0.00010338,2]
[420125643,1775700639097,-5533.0,0.000106,5]
[420125644,1775700639107,-1023.08348271,0.000107,2]
[420125645,1775700639119,-3754.03218315,0.000107,2]
[420125646,1775700639130,-615.21547425,0.000107,2]